[Event "Live Chess"]
[Site "Chess.com"]
[Date "2023.05.21"]
[Round "-"]
[White "MJMykh"]
[Black "WilliWeisswurst"]
[Result "1/2-1/2"]
[WhiteElo "1173"]
[BlackElo "1763"]
[TimeControl "300"]
[EndTime "7:00:28 PDT"]
[Termination "Game drawn by repetition"]

1. e4 {[%clk 0:04:58.5]} 1... c5 {[%clk 0:04:59]} 2. Nf3 {[%clk 0:04:57.6]} 2...
d6 {[%clk 0:04:58.3]} 3. Nc3 {[%clk 0:04:57.1]} 3... Nf6 {[%clk 0:04:52.7]} 4.
Bc4 {[%clk 0:04:50.3]} 4... a6 {[%clk 0:04:51.4]} 5. Ng5 {[%clk 0:04:49.6]} 5...
e6 {[%clk 0:04:50.7]} 6. Nf3 {[%clk 0:04:47.7]} 6... b5 {[%clk 0:04:43.1]} 7.
Bd3 {[%clk 0:04:45.4]} 7... c4 {[%clk 0:04:39.8]} 8. Be2 {[%clk 0:04:44.3]} 8...
Bb7 {[%clk 0:04:38.7]} 9. d3 {[%clk 0:04:40.3]} 9... Be7 {[%clk 0:04:32.7]} 10.
O-O {[%clk 0:04:35]} 10... O-O {[%clk 0:04:30.3]} 11. h3 {[%clk 0:04:33.5]}
11... h6 {[%clk 0:04:28.5]} 12. dxc4 {[%clk 0:04:29.7]} 12... bxc4 {[%clk
0:04:27.4]} 13. Bxc4 {[%clk 0:04:26.1]} 13... Nxe4 {[%clk 0:04:23.6]} 14. Nxe4
{[%clk 0:04:24.5]} 14... Bxe4 {[%clk 0:04:22.4]} 15. Bd3 {[%clk 0:04:21.9]}
15... Bb7 {[%clk 0:04:19]} 16. Qe2 {[%clk 0:04:19.9]} 16... Nc6 {[%clk
0:04:07.6]} 17. Be4 {[%clk 0:04:15.1]} 17... Rb8 {[%clk 0:04:04.7]} 18. Bxc6
{[%clk 0:04:11.8]} 18... Bxc6 {[%clk 0:04:03.8]} 19. Nd4 {[%clk 0:04:11.1]}
19... Bb5 {[%clk 0:03:52.7]} 20. Nxb5 {[%clk 0:04:09.1]} 20... axb5 {[%clk
0:03:52.6]} 21. c3 {[%clk 0:04:07]} 21... Bf6 {[%clk 0:03:51.5]} 22. Bf4 {[%clk
0:04:03.6]} 22... Qb6 {[%clk 0:03:37]} 23. Qd3 {[%clk 0:03:58.8]} 23... Rbd8
{[%clk 0:03:28.1]} 24. Qe3 {[%clk 0:03:53.8]} 24... Qb7 {[%clk 0:03:21]} 25.
Rad1 {[%clk 0:03:43.2]} 25... d5 {[%clk 0:03:19.7]} 26. Be5 {[%clk 0:03:35.9]}
26... Bxe5 {[%clk 0:03:17.4]} 27. Qxe5 {[%clk 0:03:35.8]} 27... Qa6 {[%clk
0:03:14.3]} 28. a3 {[%clk 0:03:33.6]} 28... Rc8 {[%clk 0:03:02.6]} 29. Rd3
{[%clk 0:03:28.2]} 29... Rc4 {[%clk 0:03:01]} 30. Rg3 {[%clk 0:03:23.4]} 30...
g6 {[%clk 0:02:50.7]} 31. Qh5 {[%clk 0:03:12.6]} 31... Kh7 {[%clk 0:02:46.2]}
32. Qe5 {[%clk 0:03:07.8]} 32... Re4 {[%clk 0:02:39]} 33. Qf6 {[%clk 0:03:02.5]}
33... Qd6 {[%clk 0:02:29.2]} 34. Qf3 {[%clk 0:02:52.9]} 34... Rf4 {[%clk
0:02:21.3]} 35. Qe3 {[%clk 0:02:49.3]} 35... Re4 {[%clk 0:02:15.6]} 36. Qf3
{[%clk 0:02:46.5]} 36... Rc4 {[%clk 0:02:10.1]} 37. Qd3 {[%clk 0:02:38.4]} 37...
f5 {[%clk 0:01:50.3]} 38. Qf3 {[%clk 0:02:25.5]} 38... Rf4 {[%clk 0:01:45.1]}
39. Qe3 {[%clk 0:02:22.3]} 39... Re4 {[%clk 0:01:32.9]} 40. Qf3 {[%clk
0:02:20.9]} 40... Rc8 {[%clk 0:01:29.6]} 41. Qd3 {[%clk 0:02:17.4]} 41... Rcc4
{[%clk 0:01:22.3]} 42. Re3 {[%clk 0:02:02.8]} 42... Rxe3 {[%clk 0:01:20.2]} 43.
Qxe3 {[%clk 0:02:02.2]} 43... Re4 {[%clk 0:01:18.8]} 44. Qf3 {[%clk 0:02:00.8]}
44... Qc5 {[%clk 0:01:17.5]} 45. Qd3 {[%clk 0:01:57.7]} 45... Qb6 {[%clk
0:01:08.1]} 46. Kh2 {[%clk 0:01:52.5]} 46... Qa5 {[%clk 0:01:01.4]} 47. f3
{[%clk 0:01:47.8]} 47... Rc4 {[%clk 0:00:48.5]} 48. Kg3 {[%clk 0:01:40.5]} 48...
Qc7+ {[%clk 0:00:40.1]} 49. Kf2 {[%clk 0:01:38.1]} 49... Qf4 {[%clk 0:00:34.5]}
50. Kg1 {[%clk 0:01:34.7]} 50... Qg3 {[%clk 0:00:32.8]} 51. Qe2 {[%clk
0:01:28.5]} 51... Rh4 {[%clk 0:00:25.2]} 52. Qxe6 {[%clk 0:01:17.5]} 52... Rxh3
{[%clk 0:00:22.8]} 53. Qe7+ {[%clk 0:01:13.7]} 53... Kh8 {[%clk 0:00:22.2]} 54.
Qe8+ {[%clk 0:01:11.5]} 54... Kh7 {[%clk 0:00:21.6]} 55. Qe7+ {[%clk 0:01:07.5]}
55... Kh8 {[%clk 0:00:21.1]} 56. Qf8+ {[%clk 0:01:06]} 56... Kh7 {[%clk
0:00:20]} 57. Qf7+ {[%clk 0:01:04.5]} 57... Kh8 {[%clk 0:00:19.6]} 58. Qf6+
{[%clk 0:01:01.4]} 58... Kh7 {[%clk 0:00:19]} 59. Qe7+ {[%clk 0:00:57.9]}
1/2-1/2

[Event "Live Chess"]
[Site "Chess.com"]
[Date "2023.05.21"]
[Round "-"]
[White "MartinWalker4"]
[Black "Hacker_2009"]
[Result "1/2-1/2"]
[WhiteElo "2063"]
[BlackElo "1936"]
[TimeControl "300"]
[EndTime "7:00:31 PDT"]
[Termination "Game drawn by agreement"]

1. e4 {[%clk 0:04:57]} 1... c5 {[%clk 0:04:57.9]} 2. Nf3 {[%clk 0:04:54.8]} 2...
d6 {[%clk 0:04:56.5]} 3. Bb5+ {[%clk 0:04:53.2]} 3... Bd7 {[%clk 0:04:55.3]} 4.
Bxd7+ {[%clk 0:04:51.6]} 4... Qxd7 {[%clk 0:04:55.2]} 5. O-O {[%clk 0:04:50.1]}
5... Nf6 {[%clk 0:04:53.6]} 6. Re1 {[%clk 0:04:45.1]} 6... e6 {[%clk 0:04:52.2]}
7. c3 {[%clk 0:04:42.6]} 7... Nc6 {[%clk 0:04:49.4]} 8. d4 {[%clk 0:04:41.3]}
8... cxd4 {[%clk 0:04:46.9]} 9. cxd4 {[%clk 0:04:40.3]} 9... Be7 {[%clk
0:04:45.7]} 10. Nc3 {[%clk 0:04:39]} 10... O-O {[%clk 0:04:44.6]} 11. e5 {[%clk
0:04:36.4]} 11... dxe5 {[%clk 0:04:43.5]} 12. dxe5 {[%clk 0:04:34.7]} 12... Qxd1
{[%clk 0:04:42.2]} 13. Rxd1 {[%clk 0:04:32.6]} 13... Ng4 {[%clk 0:04:41.8]} 14.
Bf4 {[%clk 0:04:30.1]} 14... Bc5 {[%clk 0:04:40.1]} 15. Ne4 {[%clk 0:04:27.3]}
15... Bb6 {[%clk 0:04:34.4]} 16. h3 {[%clk 0:04:25.1]} 16... Nh6 {[%clk
0:04:33]} 17. Rd7 {[%clk 0:04:04.5]} 17... Rab8 {[%clk 0:04:21.4]} 18. Nd6
{[%clk 0:04:02]} 18... Nf5 {[%clk 0:04:14.6]} 19. Nxf5 {[%clk 0:03:56.3]} 19...
exf5 {[%clk 0:04:12.1]} 20. e6 {[%clk 0:03:55.1]} 20... Rbc8 {[%clk 0:04:02.3]}
21. e7 {[%clk 0:03:26.3]} 21... Rfe8 {[%clk 0:04:00.1]} 22. Bd6 {[%clk 0:03:25]}
22... Nd4 {[%clk 0:03:48.9]} 23. Nxd4 {[%clk 0:03:23.2]} 23... Bxd4 {[%clk
0:03:48.7]} 24. Rxb7 {[%clk 0:03:21.5]} 24... Rc2 {[%clk 0:03:47.5]} 25. Rf1
{[%clk 0:03:18]} 25... f6 {[%clk 0:03:41.9]} 26. Rd7 {[%clk 0:03:03.9]} 26...
Kf7 {[%clk 0:03:37.6]} 27. Rd8 {[%clk 0:03:02.7]} 27... Bb6 {[%clk 0:03:35.2]}
28. Rxe8 {[%clk 0:02:55.5]} 28... Kxe8 {[%clk 0:03:33.7]} 29. Ba3 {[%clk
0:02:54.4]} 29... Bc5 {[%clk 0:03:29]} 30. Bxc5 {[%clk 0:02:41.5]} 30... Rxc5
{[%clk 0:03:28.9]} 31. Rb1 {[%clk 0:02:34.6]} 31... Kxe7 {[%clk 0:03:26.3]} 32.
b4 {[%clk 0:02:33]} 32... Rb5 {[%clk 0:03:22.7]} 33. a4 {[%clk 0:02:31.4]} 33...
Rb7 {[%clk 0:03:21.2]} 34. b5 {[%clk 0:02:29.1]} 34... Kd6 {[%clk 0:03:18.8]}
35. Kf1 {[%clk 0:02:26.7]} 35... Kc5 {[%clk 0:03:17.2]} 36. Ke2 {[%clk
0:02:24.1]} 36... Kb6 {[%clk 0:03:16.8]} 37. Rb4 {[%clk 0:02:04.2]} 37... Ka5
{[%clk 0:03:12]} 38. Rf4 {[%clk 0:02:02.8]} 38... g6 {[%clk 0:03:10.7]} 39. g4
{[%clk 0:02:00.5]} 39... fxg4 {[%clk 0:03:08.1]} 40. hxg4 {[%clk 0:01:59.5]}
40... Rf7 {[%clk 0:03:07.4]} 41. Kd3 {[%clk 0:01:54.3]} 41... f5 {[%clk
0:03:01.3]} 42. f3 {[%clk 0:01:23.9]} 42... Rd7+ {[%clk 0:02:58.3]} 43. Kc3
{[%clk 0:01:19.6]} 43... fxg4 {[%clk 0:02:56.1]} 44. fxg4 {[%clk 0:01:17.3]}
44... a6 {[%clk 0:02:54.1]} 45. bxa6 {[%clk 0:01:13.9]} 45... Kxa6 {[%clk
0:02:52.6]} 46. Kb4 {[%clk 0:01:11.8]} 46... Rd6 {[%clk 0:02:45]} 47. Kc5 {[%clk
0:01:09.8]} 47... Re6 {[%clk 0:02:41.6]} 48. Kd5 {[%clk 0:01:04.4]} 48... Re1
{[%clk 0:02:40.5]} 49. Rf7 {[%clk 0:01:01.6]} 49... h5 {[%clk 0:02:37]} 50. gxh5
{[%clk 0:00:59.6]} 50... gxh5 {[%clk 0:02:35.8]} 51. Rh7 {[%clk 0:00:58.6]}
51... Rh1 {[%clk 0:02:34.4]} 52. Ke4 {[%clk 0:00:55.3]} 1/2-1/2

[Event "Live Chess"]
[Site "Chess.com"]
[Date "2023.05.21"]
[Round "-"]
[White "SupremeTactician"]
[Black "friarnator"]
[Result "1-0"]
[WhiteElo "2214"]
[BlackElo "2038"]
[TimeControl "300"]
[EndTime "7:00:40 PDT"]
[Termination "SupremeTactician won by resignation"]

1. e4 {[%clk 0:04:56.8]} 1... c5 {[%clk 0:04:57]} 2. Nf3 {[%clk 0:04:54.6]} 2...
d6 {[%clk 0:04:56.2]} 3. d4 {[%clk 0:04:54.1]} 3... cxd4 {[%clk 0:04:56.1]} 4.
Nxd4 {[%clk 0:04:50.9]} 4... Nf6 {[%clk 0:04:55.4]} 5. f3 {[%clk 0:04:50.8]}
5... e5 {[%clk 0:04:42.6]} 6. Nb3 {[%clk 0:04:48.9]} 6... d5 {[%clk 0:04:42.1]}
7. Bg5 {[%clk 0:04:46.8]} 7... Be6 {[%clk 0:04:19.8]} 8. Bxf6 {[%clk 0:04:42.6]}
8... gxf6 {[%clk 0:04:17.7]} 9. exd5 {[%clk 0:04:41.5]} 9... Qxd5 {[%clk
0:04:14.2]} 10. Qxd5 {[%clk 0:04:39.3]} 10... Bxd5 {[%clk 0:04:14.1]} 11. c4
{[%clk 0:04:38.5]} 11... Be6 {[%clk 0:04:12.1]} 12. Nc3 {[%clk 0:04:38.1]} 12...
Bb4 {[%clk 0:04:09.4]} 13. O-O-O {[%clk 0:04:34.7]} 13... Bxc3 {[%clk
0:04:07.3]} 14. bxc3 {[%clk 0:04:34.6]} 14... Nc6 {[%clk 0:04:05.2]} 15. Nc5
{[%clk 0:04:31.4]} 15... b6 {[%clk 0:03:42.3]} 16. Nxe6 {[%clk 0:04:28.8]} 16...
fxe6 {[%clk 0:03:42.2]} 17. Rd6 {[%clk 0:04:26.4]} 17... Nd8 {[%clk 0:03:41.8]}
18. Be2 {[%clk 0:04:24.1]} 18... O-O {[%clk 0:03:37.2]} 19. Rhd1 {[%clk
0:04:21.4]} 19... Re8 {[%clk 0:03:35.4]} 20. Rd7 {[%clk 0:04:18]} 20... Nc6
{[%clk 0:03:29.2]} 21. R1d6 {[%clk 0:04:15.2]} 21... Rad8 {[%clk 0:02:07.2]} 22.
Rxd8 {[%clk 0:04:10.1]} 22... Nxd8 {[%clk 0:02:07.1]} 23. Rd7 {[%clk 0:04:07.4]}
23... Nc6 {[%clk 0:02:06]} 24. Rc7 {[%clk 0:04:03.5]} 24... Ne7 {[%clk
0:01:37.4]} 25. Rxa7 {[%clk 0:04:00.6]} 25... Nf5 {[%clk 0:01:36.8]} 26. Bd3
{[%clk 0:03:57.7]} 26... Ne3 {[%clk 0:01:33.6]} 27. Bxh7+ {[%clk 0:03:52.5]}
27... Kf8 {[%clk 0:01:28.3]} 28. Bg6 {[%clk 0:03:46.4]} 28... Rc8 {[%clk
0:01:26.3]} 29. Rf7+ {[%clk 0:03:31.6]} 29... Kg8 {[%clk 0:01:25]} 30. Rxf6
{[%clk 0:03:30.1]} 30... Nxg2 {[%clk 0:01:24.3]} 31. Rxe6 {[%clk 0:03:25.1]}
31... Nf4 {[%clk 0:01:22.8]} 32. Rxb6 {[%clk 0:03:22.4]} 32... Rxc4 {[%clk
0:01:21.7]} 33. Kd2 {[%clk 0:03:17.6]} 33... Ra4 {[%clk 0:01:18.4]} 34. Bb1
{[%clk 0:03:15]} 34... Kf7 {[%clk 0:00:52.9]} 35. Rb7+ {[%clk 0:03:08.8]} 35...
Ke6 {[%clk 0:00:51.5]} 36. Ke3 {[%clk 0:03:01.1]} 36... Nd5+ {[%clk 0:00:48.6]}
37. Kd2 {[%clk 0:02:59.2]} 37... Nf4 {[%clk 0:00:46.9]} 38. Rb6+ {[%clk
0:02:57.4]} 38... Kd5 {[%clk 0:00:44.6]} 39. Be4+ {[%clk 0:02:55.3]} 39... Kc5
{[%clk 0:00:43.4]} 40. Rc6+ {[%clk 0:02:54.1]} 40... Kb5 {[%clk 0:00:41.2]} 41.
Rh6 {[%clk 0:02:51.8]} 41... Rxa2+ {[%clk 0:00:39]} 42. Ke1 {[%clk 0:02:47.1]}
42... Ng2+ {[%clk 0:00:35]} 43. Kf1 {[%clk 0:02:44.7]} 43... Ne3+ {[%clk
0:00:32.7]} 44. Kg1 {[%clk 0:02:43.5]} 44... Rg2+ {[%clk 0:00:28.4]} 45. Kh1
{[%clk 0:02:41.9]} 45... Rd2 {[%clk 0:00:21.3]} 46. h4 {[%clk 0:02:40.1]} 46...
Rd1+ {[%clk 0:00:18]} 47. Kh2 {[%clk 0:02:39]} 47... Rd2+ {[%clk 0:00:17.1]} 48.
Kh3 {[%clk 0:02:37.6]} 48... Kc4 {[%clk 0:00:14]} 49. Rc6+ {[%clk 0:02:34.3]}
49... Kb5 {[%clk 0:00:12.5]} 50. h5 {[%clk 0:02:33.3]} 50... Rh2+ {[%clk
0:00:10.4]} 51. Kxh2 {[%clk 0:02:31.4]} 1-0

[Event "Live Chess"]
[Site "Chess.com"]
[Date "2023.05.21"]
[Round "-"]
[White "NatashaRegan"]
[Black "Chesscoach_Golichenko"]
[Result "0-1"]
[WhiteElo "1708"]
[BlackElo "2623"]
[TimeControl "300"]
[EndTime "7:00:42 PDT"]
[Termination "Chesscoach_Golichenko won by checkmate"]

1. e4 {[%clk 0:04:55.6]} 1... Nf6 {[%clk 0:04:57.6]} 2. e5 {[%clk 0:04:54.2]}
2... Nd5 {[%clk 0:04:56.6]} 3. d4 {[%clk 0:04:53.3]} 3... d6 {[%clk 0:04:55.6]}
4. c4 {[%clk 0:04:52.5]} 4... Nb6 {[%clk 0:04:54.1]} 5. f4 {[%clk 0:04:50.6]}
5... dxe5 {[%clk 0:04:53.1]} 6. fxe5 {[%clk 0:04:49.4]} 6... Bf5 {[%clk
0:04:51.8]} 7. Nc3 {[%clk 0:04:47.4]} 7... e6 {[%clk 0:04:51.1]} 8. Nf3 {[%clk
0:04:44.4]} 8... Bb4 {[%clk 0:04:46.6]} 9. Bd2 {[%clk 0:04:40.3]} 9... c5 {[%clk
0:04:38.7]} 10. d5 {[%clk 0:04:32.3]} 10... exd5 {[%clk 0:04:33.9]} 11. Nxd5
{[%clk 0:04:29.4]} 11... Nxd5 {[%clk 0:04:29.5]} 12. cxd5 {[%clk 0:04:09.8]}
12... Qxd5 {[%clk 0:04:24.9]} 13. Bb5+ {[%clk 0:04:06.5]} 13... Nc6 {[%clk
0:04:14.6]} 14. Bxb4 {[%clk 0:04:02.7]} 14... Qe4+ {[%clk 0:04:07]} 15. Qe2
{[%clk 0:03:32.2]} 15... Qxb4+ {[%clk 0:04:04.1]} 16. Nd2 {[%clk 0:03:30.8]}
16... O-O {[%clk 0:03:52.4]} 17. O-O {[%clk 0:03:27.6]} 17... Nd4 {[%clk
0:03:49.3]} 18. Qf2 {[%clk 0:03:13.8]} 18... Qxb2 {[%clk 0:03:40.9]} 19. Bc4
{[%clk 0:03:04.4]} 19... Be6 {[%clk 0:03:39.2]} 20. Bxe6 {[%clk 0:02:54.2]}
20... fxe6 {[%clk 0:03:37.8]} 21. Qe3 {[%clk 0:02:51.8]} 21... Nc2 {[%clk
0:03:34.5]} 22. Qh3 {[%clk 0:02:40.6]} 22... Nxa1 {[%clk 0:03:27]} 23. Qxe6+
{[%clk 0:02:39.4]} 23... Kh8 {[%clk 0:03:26]} 24. Nf3 {[%clk 0:02:33.8]} 24...
Nc2 {[%clk 0:03:20.7]} 25. Qh3 {[%clk 0:02:26.8]} 25... Ne3 {[%clk 0:03:14.6]}
26. Re1 {[%clk 0:02:20.4]} 26... Qc3 {[%clk 0:03:11.7]} 27. Re2 {[%clk
0:02:13.4]} 27... Rae8 {[%clk 0:03:07.8]} 28. Ng5 {[%clk 0:02:10.4]} 28... Rf1#
{[%clk 0:03:05.8]} 0-1

[Event "Live Chess"]
[Site "Chess.com"]
[Date "2023.05.21"]
[Round "-"]
[White "lord_cll"]
[Black "LL220284LL"]
[Result "0-1"]
[WhiteElo "1209"]
[BlackElo "2282"]
[TimeControl "300"]
[EndTime "7:00:43 PDT"]
[Termination "LL220284LL won by resignation"]

1. e4 {[%clk 0:04:59.4]} 1... d5 {[%clk 0:04:59.9]} 2. exd5 {[%clk 0:04:53.8]}
2... Qxd5 {[%clk 0:04:59.8]} 3. Nc3 {[%clk 0:04:52.5]} 3... Qa5 {[%clk
0:04:58.3]} 4. Bc4 {[%clk 0:04:50.2]} 4... Nf6 {[%clk 0:04:53.8]} 5. d3 {[%clk
0:04:48.9]} 5... Bf5 {[%clk 0:04:51.6]} 6. Nf3 {[%clk 0:04:45]} 6... e6 {[%clk
0:04:49.8]} 7. Bd2 {[%clk 0:04:43.1]} 7... c6 {[%clk 0:04:47.9]} 8. Qe2 {[%clk
0:04:35.4]} 8... Qc7 {[%clk 0:04:46]} 9. O-O-O {[%clk 0:04:17.7]} 9... Bd6
{[%clk 0:04:44.1]} 10. Rhe1 {[%clk 0:03:46.5]} 10... Nbd7 {[%clk 0:04:40.3]} 11.
Nd4 {[%clk 0:03:42.9]} 11... O-O {[%clk 0:04:38]} 12. Bxe6 {[%clk 0:03:38]}
12... Bxe6 {[%clk 0:04:36.5]} 13. Nxe6 {[%clk 0:03:36.4]} 13... fxe6 {[%clk
0:04:36.4]} 14. Qxe6+ {[%clk 0:03:31.4]} 14... Kh8 {[%clk 0:04:36]} 15. g3
{[%clk 0:03:04.2]} 15... Rae8 {[%clk 0:04:29.2]} 16. Qh3 {[%clk 0:02:44.7]}
16... Ne5 {[%clk 0:04:25.6]} 17. Bf4 {[%clk 0:02:31.3]} 17... Nf3 {[%clk
0:04:22.5]} 18. Bxd6 {[%clk 0:02:28.4]} 18... Qxd6 {[%clk 0:04:20.9]} 19. Re3
{[%clk 0:02:05.9]} 19... Qd4 {[%clk 0:04:05.4]} 20. Rde1 {[%clk 0:01:59.4]}
20... Nxe1 {[%clk 0:04:04]} 0-1

[Event "Live Chess"]
[Site "Chess.com"]
[Date "2023.05.21"]
[Round "-"]
[White "WelshTiger"]
[Black "Mugzwang"]
[Result "1-0"]
[WhiteElo "2328"]
[BlackElo "1477"]
[TimeControl "300"]
[EndTime "7:00:46 PDT"]
[Termination "WelshTiger won by checkmate"]

1. e4 {[%clk 0:04:57.5]} 1... c5 {[%clk 0:04:58.7]} 2. Nf3 {[%clk 0:04:56.4]}
2... Nc6 {[%clk 0:04:57.3]} 3. Bb5 {[%clk 0:04:55]} 3... Nf6 {[%clk 0:04:54.5]}
4. d3 {[%clk 0:04:49.6]} 4... g6 {[%clk 0:04:51.1]} 5. Bxc6 {[%clk 0:04:47.4]}
5... dxc6 {[%clk 0:04:50]} 6. h3 {[%clk 0:04:46.1]} 6... Bg7 {[%clk 0:04:45.9]}
7. Nc3 {[%clk 0:04:45.4]} 7... O-O {[%clk 0:04:44.1]} 8. Be3 {[%clk 0:04:45]}
8... b6 {[%clk 0:04:41.7]} 9. Qd2 {[%clk 0:04:44.5]} 9... Be6 {[%clk 0:04:23.5]}
10. Bh6 {[%clk 0:04:38]} 10... c4 {[%clk 0:04:13]} 11. d4 {[%clk 0:04:35.5]}
11... b5 {[%clk 0:03:57.3]} 12. e5 {[%clk 0:04:33.3]} 12... Nd5 {[%clk
0:03:51.4]} 13. Ne4 {[%clk 0:04:32]} 13... Bf5 {[%clk 0:03:42.6]} 14. Ng3 {[%clk
0:04:24.6]} 14... c3 {[%clk 0:03:33]} 15. bxc3 {[%clk 0:04:21.7]} 15... Nxc3
{[%clk 0:03:27.4]} 16. Bxg7 {[%clk 0:04:17.8]} 16... Kxg7 {[%clk 0:03:18.8]} 17.
Nxf5+ {[%clk 0:04:17]} 17... gxf5 {[%clk 0:03:13.7]} 18. Qxc3 {[%clk 0:04:16.9]}
18... Qd5 {[%clk 0:03:01.3]} 19. O-O {[%clk 0:04:15.8]} 19... Rg8 {[%clk
0:03:00]} 20. Qe3 {[%clk 0:04:12.8]} 20... Kf8 {[%clk 0:02:57.9]} 21. a4 {[%clk
0:04:06.3]} 21... b4 {[%clk 0:02:53.9]} 22. Kh2 {[%clk 0:03:56.3]} 22... a5
{[%clk 0:02:50.1]} 23. Rae1 {[%clk 0:03:39.5]} 23... e6 {[%clk 0:02:46.2]} 24.
g3 {[%clk 0:03:36.6]} 24... Ke7 {[%clk 0:02:35.3]} 25. Qb3 {[%clk 0:03:35.2]}
25... Qd8 {[%clk 0:02:21.5]} 26. c4 {[%clk 0:03:25.6]} 26... Qf8 {[%clk
0:02:17.4]} 27. Rd1 {[%clk 0:03:23.3]} 27... Qg7 {[%clk 0:02:04.9]} 28. d5
{[%clk 0:03:20.6]} 28... cxd5 {[%clk 0:02:03.6]} 29. cxd5 {[%clk 0:03:20.5]}
29... f4 {[%clk 0:01:49.2]} 30. g4 {[%clk 0:03:18.5]} 30... Rac8 {[%clk
0:01:46.1]} 31. Rc1 {[%clk 0:03:00.1]} 31... Qh6 {[%clk 0:01:40.1]} 32. Rxc8
{[%clk 0:02:49.2]} 32... Rxc8 {[%clk 0:01:38.5]} 33. dxe6 {[%clk 0:02:48.5]}
33... Rc3 {[%clk 0:01:34.7]} 34. Qd5 {[%clk 0:02:47.6]} 34... fxe6 {[%clk
0:01:30.7]} 35. Qd6+ {[%clk 0:02:46.9]} 35... Kf7 {[%clk 0:01:26.1]} 36. Qd7+
{[%clk 0:02:46.3]} 36... Kg6 {[%clk 0:01:24.8]} 37. Qxe6+ {[%clk 0:02:44.5]}
37... Kg7 {[%clk 0:01:23.5]} 38. Qe7+ {[%clk 0:02:36.6]} 38... Kg6 {[%clk
0:01:21.1]} 39. Rd1 {[%clk 0:02:34.7]} 39... Rxf3 {[%clk 0:01:08.2]} 40. Rd6#
{[%clk 0:02:32.8]} 1-0

[Event "Live Chess"]
[Site "Chess.com"]
[Date "2023.05.21"]
[Round "-"]
[White "OleksiyJr1"]
[Black "zdanevych"]
[Result "0-1"]
[WhiteElo "1026"]
[BlackElo "1493"]
[TimeControl "300"]
[EndTime "7:00:46 PDT"]
[Termination "zdanevych won by resignation"]

1. e4 {[%clk 0:04:58.1]} 1... c5 {[%clk 0:04:59.2]} 2. Nf3 {[%clk 0:04:51.3]}
2... e6 {[%clk 0:04:49.9]} 3. d4 {[%clk 0:04:45.9]} 3... cxd4 {[%clk 0:04:47.2]}
4. Qxd4 {[%clk 0:04:45.8]} 4... Nc6 {[%clk 0:04:46.6]} 5. Qe3 {[%clk 0:04:43.3]}
5... e5 {[%clk 0:04:44.3]} 6. Nc3 {[%clk 0:04:41.3]} 6... a6 {[%clk 0:04:42.7]}
7. Bd2 {[%clk 0:04:35.7]} 7... h6 {[%clk 0:04:41.7]} 8. O-O-O {[%clk 0:04:33.9]}
8... Bb4 {[%clk 0:04:33.4]} 9. a3 {[%clk 0:04:32]} 9... Ba5 {[%clk 0:04:32.2]}
10. Kb1 {[%clk 0:04:20.6]} 10... Nf6 {[%clk 0:04:30.7]} 11. Bd3 {[%clk
0:04:18.2]} 11... d6 {[%clk 0:04:28]} 12. Rhe1 {[%clk 0:00:12.6]} 12... Be6
{[%clk 0:04:10.9]} 13. Ne2 {[%clk 0:00:09]} 13... O-O {[%clk 0:04:09.5]} 14.
Bxa5 {[%clk 0:00:05.3]} 14... Nxa5 {[%clk 0:04:07.6]} 0-1

[Event "Live Chess"]
[Site "Chess.com"]
[Date "2023.05.21"]
[Round "-"]
[White "matt1979"]
[Black "Conradical12"]
[Result "1-0"]
[WhiteElo "1553"]
[BlackElo "1558"]
[TimeControl "300"]
[EndTime "7:00:47 PDT"]
[Termination "matt1979 won by resignation"]

1. f4 {[%clk 0:04:58.1]} 1... e5 {[%clk 0:04:56.2]} 2. fxe5 {[%clk 0:04:56.3]}
2... Nc6 {[%clk 0:04:54.2]} 3. Nf3 {[%clk 0:04:53.1]} 3... Be7 {[%clk
0:04:50.5]} 4. d4 {[%clk 0:04:51.3]} 4... f6 {[%clk 0:04:47.8]} 5. c3 {[%clk
0:04:33.2]} 5... d6 {[%clk 0:04:41.3]} 6. e3 {[%clk 0:04:18.2]} 6... Nh6 {[%clk
0:04:17.6]} 7. exd6 {[%clk 0:04:12.8]} 7... Bxd6 {[%clk 0:04:15]} 8. Bb5 {[%clk
0:04:10.4]} 8... O-O {[%clk 0:04:12.1]} 9. Bxc6 {[%clk 0:04:08.6]} 9... bxc6
{[%clk 0:04:09.2]} 10. O-O {[%clk 0:04:03.1]} 10... Ng4 {[%clk 0:04:05.2]} 11.
h3 {[%clk 0:03:58.6]} 11... f5 {[%clk 0:03:57.1]} 12. hxg4 {[%clk 0:03:53.4]}
12... fxg4 {[%clk 0:03:55.9]} 13. Ne5 {[%clk 0:03:19.5]} 13... Bxe5 {[%clk
0:03:47.4]} 14. Rxf8+ {[%clk 0:03:13.1]} 14... Kxf8 {[%clk 0:03:45.7]} 15. Qf1+
{[%clk 0:03:07]} 15... Bf6 {[%clk 0:03:44]} 16. e4 {[%clk 0:03:01.2]} 16... Kg8
{[%clk 0:03:39.9]} 17. e5 {[%clk 0:02:57.3]} 17... Bg5 {[%clk 0:03:35.3]} 18.
Nd2 {[%clk 0:02:48.2]} 18... Bxd2 {[%clk 0:03:32.1]} 19. Bxd2 {[%clk 0:02:46.3]}
19... Qh4 {[%clk 0:03:28.2]} 20. Qf4 {[%clk 0:02:35.6]} 20... Be6 {[%clk
0:03:20.8]} 21. Rf1 {[%clk 0:02:30.6]} 21... h6 {[%clk 0:03:05.9]} 22. b3 {[%clk
0:02:27.2]} 22... Qe7 {[%clk 0:02:52.4]} 23. c4 {[%clk 0:02:20]} 23... Rf8
{[%clk 0:02:46.9]} 24. Qg3 {[%clk 0:02:15]} 24... Rxf1+ {[%clk 0:02:41.4]} 25.
Kxf1 {[%clk 0:02:13.4]} 25... Qd8 {[%clk 0:02:41.1]} 26. Bc3 {[%clk 0:02:07.8]}
26... c5 {[%clk 0:02:38.9]} 27. d5 {[%clk 0:02:05.5]} 27... Bf5 {[%clk
0:02:31.1]} 28. Qf4 {[%clk 0:01:59.2]} 28... Qf8 {[%clk 0:02:26.4]} 29. Kf2
{[%clk 0:01:54.4]} 29... g5 {[%clk 0:02:22]} 30. Qe3 {[%clk 0:01:45.3]} 30...
Bd3+ {[%clk 0:02:04.6]} 31. Ke1 {[%clk 0:01:38.4]} 31... Qf1+ {[%clk 0:02:00.2]}
32. Kd2 {[%clk 0:01:37.3]} 32... Bf5 {[%clk 0:01:52.1]} 33. e6 {[%clk
0:01:29.7]} 33... Qxg2+ {[%clk 0:01:47.5]} 34. Qe2 {[%clk 0:01:27.9]} 34...
Qxe2+ {[%clk 0:01:09.4]} 35. Kxe2 {[%clk 0:01:26.5]} 35... h5 {[%clk 0:01:08.2]}
36. Be5 {[%clk 0:01:20.2]} 36... Kf8 {[%clk 0:00:58.2]} 37. Bxc7 {[%clk
0:01:18.1]} 37... Ke8 {[%clk 0:00:55.7]} 38. Bd6 {[%clk 0:01:12]} 38... h4
{[%clk 0:00:54.5]} 39. Bxc5 {[%clk 0:01:10.6]} 39... h3 {[%clk 0:00:52.5]} 40.
Kf2 {[%clk 0:00:59.2]} 40... Bb1 {[%clk 0:00:50]} 41. a3 {[%clk 0:00:49.7]}
41... Ba2 {[%clk 0:00:48.2]} 42. d6 {[%clk 0:00:47.9]} 42... Bxb3 {[%clk
0:00:39.4]} 43. d7+ {[%clk 0:00:45.7]} 43... Kd8 {[%clk 0:00:37.3]} 44. Bxa7
{[%clk 0:00:37.9]} 44... Kc7 {[%clk 0:00:23.9]} 45. Bb6+ {[%clk 0:00:34.5]}
45... Kxb6 {[%clk 0:00:20.8]} 46. d8=Q+ {[%clk 0:00:32.8]} 1-0